Cogmind - Beta 16.1 @@@ ROGUE MODE // 2026.04.17 @ 14:13:59 Player: SunShine214 Result: Destroyed by G-50 Soldier with Heavy Laser Performance ------------- Evolutions (4) 2000 Regions Visited (5) 1000 Robots Destroyed (36) 180 Value Destroyed (886) 886 Prototype IDs (14) 280 Alien Tech Used (0) 0 Bonus (475) 475 TOTAL SCORE: 4821 Bonus ------- Follower Combat Kills 12 Entered DSFs 500 Friendly Fire -37 Cogmind --------- Core Integrity 0/850 Matter 232/300 Energy 55/100 System Corruption 2% Temperature Cool (9) Movement Core (50) Location -6/DSF Parts ------- > --- POWER (1) -------- (None) > --- PROPULSION (4) --- (None) > --- UTILITY (4) ------ Hacking Suite Makeshift Hacking Suite > --- WEAPON (6) ------- (None) > --- INVENTORY (5) ---- Shock Bomb Launcher Shock Bomb Launcher Scythe Peak State ------------ > --- POWER ------------ (None) > --- PROPULSION ------- Light Treads Spiked Treads > --- UTILITY ---------- Small Storage Unit Hacking Suite Hacking Suite Makeshift Hacking Suite > --- WEAPON ----------- 1B-0RG's Assimilator > --- INVENTORY -------- Scythe [Rating: 79] Favorites ----------- Power Ion Engine Engine Ion Engine Propulsion Light Treads Treads Light Treads Flight Unit Surge Thruster Utility Small Storage Unit Device Sensor Array Storage Small Storage Unit Hackware Hacking Suite Weapon Grenade Launcher Energy Gun EM Pulse Gun Energy Cannon Subdweller Beam Cannon Ballistic Gun Subdweller Machine Gun Launcher Grenade Launcher Special Weapon Mining Laser Special Melee Weapon 1B-0RG's Assimilator Build | -11 -10 -10 -8 -6 -6 ------- Run | Yrd Mat Sub Rec Fac DSF Slots Evolved 8 | . . . . 8 . Power . | . . . . . . Propulsion 2 | . . . . 2 . Utility 2 | . . . . 2 . Weapon 4 | . . . . 4 . Parts Attached 26 | 6 4 9 1 2 4 Power 1 | 1 . . . . . Engine 1 | 1 . . . . . Core . | . . . . . . Reactor . | . . . . . . Propulsion 5 | 2 . 2 . . 1 Treads 4 | 2 . 2 . . . Leg . | . . . . . . Wheel . | . . . . . . Hover . | . . . . . . Flight 1 | . . . . . 1 Utility 6 | 1 . 2 1 2 . Device 2 | . . 2 . . . Storage 1 | 1 . . . . . Processor . | . . . . . . Hackware 3 | . . . 1 2 . Protection . | . . . . . . Artifact . | . . . . . . Weapon 14 | 2 4 5 . . 3 Energy Gun 3 | 2 . 1 . . . Energy Cannon 1 | . . 1 . . . Ballistic Gun 1 | . . 1 . . . Ballistic Cannon . | . . . . . . Launcher 6 | . 3 1 . . 2 Special Weapon 2 | . 1 1 . . . Impact Weapon . | . . . . . . Slashing Weapon . | . . . . . . Piercing Weapon . | . . . . . . Special Melee Weapon 1 | . . . . . 1 Unidentified Prototypes 1 | . . . . . 1 Parts Lost 13 | . 3 2 1 . 7 Power 1 | . . 1 . . . Propulsion 3 | . . . . . 3 Utility 2 | . . . . . 2 Weapon 7 | . 3 1 1 . 2 Highest Loss Streak 3 | . 3 1 1 . 3 To Critical Strikes . | . . . . . . Average Backups 5 | . 6 6 3 2 1 Power . | . . . . . . Propulsion . | . . 1 . . . Utility 2 | . 2 3 2 . . Weapon 1 | . 3 1 . 1 1 Tool/Special . | . . . . . . Unused Backups 3 | . . 2 . . 1 Power . | . . . . . . Propulsion . | . . . . . . Utility 1 | . . 1 . . . Weapon 1 | . . . . . 1 Tool/Special 1 | . . 1 . . . Average Slot Usage (%) 81 | . 83 89 76 44 35 Engine 7 | . 14 8 . . . Treads 25 | . 27 28 28 13 2 Device 9 | . . 12 13 . . Storage 13 | . 14 14 14 6 5 Hackware 1 | . . . . 18 19 Energy Gun 2 | . 14 . . . . Energy Cannon 2 | . . 3 . . . Ballistic Gun 1 | . . 2 . . . Launcher 9 | . 11 9 14 6 . Special Weapon 6 | . . 10 5 . . Peak Build Rating 79 | 6 7 17 17 22 79 Average Rating 14 | 4 6 10 15 21 59 On Entrance 11 | . 6 5 17 16 22 Avg Prop Armor Cover (%) . | . . . . . . Naked Turns . | . . . . . . Heaviest Build 60 | 14 16 23 16 13 60 Greatest Support 40 | 40 40 40 40 40 40 Greatest Overweight (x) 19 | . . . . . 19 Average Overweight (x) . | . . . . . 4 Largest Inventory Capacity 8 | 8 8 8 8 8 8 Average Capacity 7 | 7 8 8 8 8 7 Most Carried 8 | 2 8 8 8 7 6 Average Carried 6 | . 6 7 7 6 1 Final Capacity 8 | 8 8 8 8 8 5 Final Carried 8 | 2 6 8 8 6 3 Class Distribution -------------------- 91% | Mutant 8% | Hacker-Mutant Dominant Class ---------------- Mutant | -10/Materials Mutant | -10/Subcaves Mutant | -8/Recycling Hacker-Mutant | -6/Factory Hacker-Mutant | -6/DSF Resources | -11 -10 -10 -8 -6 -6 ----------- Run | Yrd Mat Sub Rec Fac DSF Matter Collected 1257 | 232 217 328 165 . 315 Remotely . | . . . . . . Salvage Created 1066 | 165 274 431 154 . 42 Parts 58 | 6 20 26 6 . . Haulers Intercepted 1 | . 1 . . . . Recyclers Shooed 1 | . 1 . . . . Parts Field Recycled . | . . . . . . Retrieved Matter . | . . . . . . Parts Self-Destructed 6 | . . 6 . . . Prevented . | . . . . . . Parts Restored . | . . . . . . Kills | -11 -10 -10 -8 -6 -6 ------- Run | Yrd Mat Sub Rec Fac DSF Combat Hostiles Destroyed 27 | . 12 13 2 . . Guns 3 | . 3 . . . . Cannons 7 | . . 7 . . . AOE 14 | . 9 4 1 . . Classes Destroyed 10 | 2 6 2 . . . Tunneler 3 | 3 . . . . . Hauler 1 | . 1 . . . . Recycler 3 | 1 1 . 1 . . Operator 1 | . 1 . . . . Watcher 1 | . 1 . . . . Swarmer 12 | . 9 3 . . . Grunt 2 | . 1 1 . . . Sentry 3 | . . 1 2 . . Artisan 2 | . . 2 . . . Subdweller 10 | . 2 8 . . . Best Kill Streak 5 | 4 5 3 2 . . Combat Bots Only 3 | . 3 3 1 . . Max Kills in Single Turn 2 | 2 2 1 1 . . Gunslinging . | . . . . . . Exploded 2 | . 2 1 1 . . Melee . | . . . . . . Uniques/NPCs Destroyed . | . . . . . . Combat | -11 -10 -10 -8 -6 -6 -------- Run | Yrd Mat Sub Rec Fac DSF Hostile Shots Fired 226 | . 31 54 6 . 135 Missed 70 | . 9 21 . . 40 Hits 156 | . 22 33 6 . 95 Melee 15 | . . . . . 15 Projectile 141 | . 22 33 6 . 80 AOE 5 | . 3 . . . 2 Critical Strikes 5 | . . . . . 5 Damage Taken 2776 | . 434 540 122 . 1680 Core 1016 | . 93 48 25 . 850 Absorbed by Shields . | . . . . . . Regen/Repaired (Parts) 273 | . . . . . 273 Core Remaining (%) 66 | 100 . . 33 . . Volleys Fired 99 | 8 23 62 5 . 1 Largest 2 | 2 2 2 2 . 1 Hottest 160 | 90 100 160 120 . 36 Shots Fired 137 | 16 40 74 6 . 1 Gun 40 | 16 20 4 . . . Cannon 27 | . . 27 . . . Launcher 45 | . 18 23 3 . 1 Special 25 | . 2 20 3 . . Kinetic 20 | . . 17 3 . . Thermal 63 | 8 5 47 3 . . Explosive 28 | . 18 10 . . . Electromagnetic 26 | 8 17 . . . 1 Robot Hit Streak 12 | 4 4 12 3 . . Robot Miss Streak 4 | 2 3 4 2 . 2 Penetration Max . | . . . . . . Secondary Targets . | . . . . . . Shots Hit Robots 58 | 9 17 29 3 . . Core Hits 46 | 5 21 16 4 . . Critical Kills 2 | . . 2 . . . Critical Parts Destroyed . | . . . . . . Critical Strikes 6 | 2 . 2 2 . . Burn 4 | 2 . . 2 . . Meltdown 2 | . . 2 . . . Melee Attacks . | . . . . . . Impact . | . . . . . . Slashing . | . . . . . . Piercing . | . . . . . . Sneak Attacks . | . . . . . . Combat Hostiles . | . . . . . . Follow-up Attacks . | . . . . . . Damage Inflicted 2621 | 134 1176 1102 138 . 71 Guns 298 | 134 143 21 . . . Cannons 497 | . . 497 . . . Explosions 1763 | . 1033 584 102 . 44 Melee . | . . . . . . Ramming 31 | . . . 4 . 27 Kinetic 304 | . . 202 102 . . Thermal 649 | 39 81 497 32 . . Explosive 1355 | . 952 403 . . . Electromagnetic 282 | 95 143 . . . 44 Impact . | . . . . . . Slashing . | . . . . . . Piercing . | . . . . . . Highest Corruption 2 | . 2 2 2 . 2 Average Corruption 2 | . 2 2 2 . 2 Corruption Purged . | . . . . . . Corruption Blocked . | . . . . . . Effects 41 | . 4 32 5 . . Message Errors 6 | . . 4 2 . . Matter Fused 10 | . 2 8 . . . Heat Flow Errors 9 | . . 7 2 . . Energy Discharges 8 | . 1 6 1 . . Data Loss (minor) 4 | . 1 3 . . . Data Loss (major) 1 | . . 1 . . . Misfires 1 | . . 1 . . . Weapon Failures 2 | . . 2 . . . Overload Shots . | . . . . . . Overflow Damage 56 | . 44 6 . . 6 Projectiles 5 | . . 5 . . . Explosions 51 | . 44 1 . . 6 Melee . | . . . . . . Knockbacks . | . . . . . . Impact . | . . . . . . Kinetic . | . . . . . . Secondary . | . . . . . . Self-Inflicted Damage 167 | . 79 36 32 . 20 Shots 9 | . 4 3 1 . 1 Rammed 7 | . 1 . 2 . 4 Targets Rammed 7 | . 1 . 2 . 4 Kicked . | . . . . . . Crushed . | . . . . . . Highest Temperature 253 | 172 45 253 208 . . Average Temperature 59 | 74 17 78 79 . . Received Heat Transfer 198 | . 12 57 27 . 102 Siege Activations . | . . . . . . Martial Activations . | . . . . . . Shielding Activations . | . . . . . . Robots Disrupted . | . . . . . . Combat Hostiles . | . . . . . . Robots Corrupted . | . . . . . . Combat Hostiles . | . . . . . . Parts Fried . | . . . . . . Impact Corruptions . | . . . . . . Robots Melted 3 | . . 2 1 . . Combat Hostiles 3 | . . 2 1 . . Parts Melted 5 | 2 1 1 1 . . Heat Transferred 1635 | 259 150 666 560 . . Parts Sabotaged . | . . . . . . Parts Stolen . | . . . . . . Parts Stripped . | . . . . . . Power Chain Reactions 2 | . 2 . . . . Alert | -11 -10 -10 -8 -6 -6 ------- Run | Yrd Mat Sub Rec Fac DSF Maximum Alert Level 1 | . 1 . . . . Low Security (%) 91 | 100 81 . 100 100 100 Level 1 8 | . 18 . . . . Level 2 . | . . . . . . Level 3 . | . . . . . . Level 4 . | . . . . . . Level 5 . | . . . . . . High Security . | . . . . . . Max Security . | . . . . . . Peak Influence 249 | 10 249 . 43 158 103 Initial 158 | . . . . 158 103 Average 68 | 2 123 . 8 154 46 Influence Increases 937 | 20 476 110 115 150 66 Destroy 0b10 Robot/C 360 | . 200 100 40 . 20 Destroy 0b10 Robot/NC 45 | 20 20 . 5 . . Destroy Leader 54 | . 44 10 . . . Allied During Kill 1 | . . . . . 1 Successful Hack 14 | . . . 14 . . Disable Machine 135 | . 105 . 15 . 15 Destroy Structure 148 | . 107 . 41 . . Advance Influence 150 | . . . . 150 . Lose Combat Pursuer 30 | . . . . . 30 Influence Decreases 902 | 20 327 259 94 23 179 Entered New Map 131 | . . 73 . 13 45 Time Decay 597 | 20 297 186 84 10 . Lost Part 100 | . 30 . 10 . 60 Lost Ally 74 | . . . . . 74 Squads Dispatched 4 | . 2 . . . 2 Investigation 1 | . 1 . . . . Extermination . | . . . . . . Reinforcement 3 | . 1 . . . 2 Assault . | . . . . . . Garrison . | . . . . . . Intercept . | . . . . . . Searches Triggered . | . . . . . . Construction Impeded . | . . . . . . Haulers Reinforced . | . . . . . . Active Scanning Responses . | . . . . . . Cargo Convoy Interrupts . | . . . . . . Stealth | -11 -10 -10 -8 -6 -6 --------- Run | Yrd Mat Sub Rec Fac DSF Distress Signals . | . . . . . . Communications Jammed . | . . . . . . Distress Signals . | . . . . . . Times Spotted 57 | . 20 19 1 . 17 Peak Tracking Total 10 | . 5 4 1 . 10 Tactical Retreats 1 | . . . . . 1 Traps | -11 -10 -10 -8 -6 -6 ------- Run | Yrd Mat Sub Rec Fac DSF Traps Triggered 5 | . 3 2 . . . Indirectly . | . . . . . . Trap Hack Attempts . | . . . . . . Triggered . | . . . . . . Disarmed . | . . . . . . Reprogrammed . | . . . . . . Reused . | . . . . . . Traps Extracted . | . . . . . . Installed . | . . . . . . Triggered . | . . . . . . Machines | -11 -10 -10 -8 -6 -6 ---------- Run | Yrd Mat Sub Rec Fac DSF Machines Disabled 9 | . 7 . 1 . 1 Max in Single Turn 2 | . 2 . 1 . 1 Machines Repaired . | . . . . . . Machines Dismantled . | . . . . . . Machines Sabotaged . | . . . . . . Overloaded Fab Kills . | . . . . . . Hacking | -11 -10 -10 -8 -6 -6 --------- Run | Yrd Mat Sub Rec Fac DSF Machines Accessed 10 | . 2 2 5 1 . Terminals 7 | . 1 . 5 1 . Fabricators . | . . . . . . Repair Stations 1 | . 1 . . . . Recycling Units . | . . . . . . Scanalyzers . | . . . . . . Garrison Access . | . . . . . . Total Hacks 23 | . 3 5 14 1 . Successful 9 | . . 5 3 1 . Failed 14 | . 3 . 11 . . Catastrophic 4 | . . . 4 . . Database Lockouts . | . . . . . . Manual 7 | . . . 7 . . Terminals 17 | . 2 . 14 1 . Fabricators . | . . . . . . Repair Stations 1 | . 1 . . . . Recycling Units . | . . . . . . Scanalyzers . | . . . . . . Garrison Access . | . . . . . . Terminal Hacks 9 | . . 5 3 1 . Record 4 | . . 4 . . . Part Schematic 2 | . . . 2 . . Open DSF 1 | . . . . 1 . Zone Layout 1 | . . . 1 . . Proto ID Catalog 1 | . . 1 . . . Fabricator Hacks . | . . . . . . Repair Station Hacks . | . . . . . . Recycling Unit Hacks . | . . . . . . Scanalyzer . | . . . . . . Garrison Access Hacks . | . . . . . . Unauthorized Hacks . | . . . . . . Terminals . | . . . . . . Fabricators . | . . . . . . Repair Stations . | . . . . . . Recycling Units . | . . . . . . Scanalyzers . | . . . . . . Garrison Access . | . . . . . . Data Cores Recovered . | . . . . . . Used . | . . . . . . Hacking Detections 6 | . 2 . 4 . . Full Trace Events 4 | . 1 . 3 . . Feedback Events . | . . . . . . Feedback Blocked . | . . . . . . Robot Schematics Acquired . | . . . . . . Robots Built . | . . . . . . Authchips . | . . . . . . Time . | . . . . . . Total Robot Build Rating . | . . . . . . Part Schematics Acquired 2 | . . . 2 . . Parts Built . | . . . . . . Authchips . | . . . . . . Time . | . . . . . . Total Part Build Rating . | . . . . . . Part Studies Acquired . | . . . . . . Parts Repaired . | . . . . . . Time . | . . . . . . Parts Recycled . | . . . . . . Recycled Matter . | . . . . . . Retrieved Matter . | . . . . . . Retrieved Components . | . . . . . . Parts Scanalyzed . | . . . . . . Part Schematics Acquired . | . . . . . . Parts Damaged . | . . . . . . Bothacking | -11 -10 -10 -8 -6 -6 ------------ Run | Yrd Mat Sub Rec Fac DSF Used RIF Installer . | . . . . . . Robots Hacked . | . . . . . . Non-combat . | . . . . . . Combat . | . . . . . . Robot Hacks Applied . | . . . . . . Relay Couplers Released . | . . . . . . Fabnet Peak Effective % . | . . . . . . Robots Rewired . | . . . . . . Allies Hacked . | . . . . . . Hacks Repelled . | . . . . . . Allies | -11 -10 -10 -8 -6 -6 -------- Run | Yrd Mat Sub Rec Fac DSF Total Allies 1 | . . . . . 1 Largest Group 1 | . . . . . 1 Highest-Rated Group 12 | . . . . . 12 Highest-Rated Ally 12 | . . . . . 12 Total Orders . | . . . . . . Ally Attacks 6 | . . . . . 6 Total Damage 66 | . . . . . 66 Kills 1 | . . . . . 1 Allies Corrupted . | . . . . . . Allies Melted . | . . . . . . Borg Created 4 | . . . . . 4 Largest Collective 1 | . . . . . 1 Intel | -11 -10 -10 -8 -6 -6 ------- Run | Yrd Mat Sub Rec Fac DSF Active Infowar (turns) 2576 | . . 2086 490 . . Sensors 2576 | . . 2086 490 . . Robot Analysis Total . | . . . . . . Derelict Logs Recovered . | . . . . . . Drone Launches . | . . . . . . Drone Recoveries . | . . . . . . Exploration | -11 -10 -10 -8 -6 -6 ------------- Run | Yrd Mat Sub Rec Fac DSF Turns Passed 4069 | 112 775 2328 506 30 318 Spaces Moved 2153 | 51 429 1285 296 18 74 Core 44 | 3 . . . . 41 Treads 2095 | 48 429 1285 296 18 19 Legs . | . . . . . . Wheels . | . . . . . . Hover . | . . . . . . Flight 14 | . . . . . 14 Fastest Speed 50 | 50 160 160 160 160 50 Average Speed 164 | 153 160 160 160 160 288 Slowest Speed 1000 | 160 160 160 160 160 1000 Overloaded Moves . | . . . . . . Propulsion Burnouts . | . . . . . . Robots Hopped . | . . . . . . Potential Cave-ins 6 | . . 6 . . . Cave-ins Triggered . | . . . . . . Exploration Rate (%) 45 | 4 80 65 57 1 63 Regions Visited 5 Branch Regions 2 Pre-discovered Areas 1 | . . 1 . . . Known Exits Taken 2 | . . 1 . 1 . Unknown Exits Taken 3 | 1 1 . 1 . . Scrap Searched 6 | . . 6 . . . Spaces Dug 58 | . . 58 . . . Terrain Destroyed 403 | . 118 233 52 . . Melee . | . . . . . . Projectile 4 | . . 4 . . . AOE 399 | . 118 229 52 . . Terrain Rammed . | . . . . . . Walls Destroyed . | . . . . . . Machines Disabled . | . . . . . . Actions | -11 -10 -10 -8 -6 -6 --------- Run | Yrd Mat Sub Rec Fac DSF Total 2496 | 66 473 1453 319 19 166 Wait 169 | . 5 75 14 . 75 Move 2148 | 50 428 1284 295 17 74 Hop . | . . . . . . Pick Up 19 | 2 8 8 1 . . Fast Attach 13 | 6 1 1 . . 5 Attach 6 | . 2 2 . 2 . Detach 2 | . . . . . 2 Swap 14 | . 3 10 1 . . Drop 15 | . 2 11 1 . 1 Fire 99 | 8 23 62 5 . 1 Melee . | . . . . . . Ram 3 | . . . . . 3 Kick . | . . . . . . Crush 4 | . 1 . 2 . 1 Escape Stasis . | . . . . . . Rewire . | . . . . . . Trap . | . . . . . . Miscellaneous 4 | . . . . . 4 Route ------- -11/Scrapyard -10/Materials (discovered 5 exits: [*Mat x2] / [*Min x2] / *Sub) -10/Subcaves -8/Recycling -6/Factory -6/DSF (discovered 1 exit: [*Fac]) History --------- Turn | Location | Event 8 | -11/Scrapyard | Discovered new exit (range 15) 113 | -11/Scrapyard | Entered Materials 323 | -10/Materials | Build established: Mutant 391 | -10/Materials | Discovered new exit (range 7) 568 | -10/Materials | Discovered new exit (range 16) 756 | -10/Materials | Discovered new exit (range 13) 813 | -10/Materials | Derelicts attacked the area 877 | -10/Materials | Discovered new exit (range 12) 880 | -10/Materials | Lost 3 parts (3w) 880 | -10/Materials | Discovered new exit (range 6) 888 | -10/Materials | Entered Subcaves 889 | -10/Subcaves | Approached by a straggling Scientist 892 | -10/Subcaves | Shifting Twisted Machinery released Humpback 903 | -10/Subcaves | Shifting Twisted Machinery released Spk. Treads 1693 | -10/Subcaves | Visited Clippyterm 1698 | -10/Subcaves | Identified exit to Recycling 1833 | -10/Subcaves | Shifting Twisted Machinery released Flamer 2255 | -10/Subcaves | Core integrity fell below 50% 2438 | -10/Subcaves | Ambushed by Subdweller buried in earth 2673 | -10/Subcaves | Visited 4L-MR0's lab 2704 | -10/Subcaves | Found Prototype Special Melee Weapon 2784 | -10/Subcaves | Learned location of Zion (-6) 2784 | -10/Subcaves | Met a Zionite searching for "candidates" 2808 | -10/Subcaves | A swath of the cavern ceiling suddenly collapsed 3216 | -10/Subcaves | Entered Recycling 3669 | -8/Recycling | Discovered new exit (range 15) 3722 | -8/Recycling | Entered Factory 3722 | -6/Factory | Evolved 8 slots: Propulsion x2, Utility x2, Weapon x4 3752 | -6/Factory | Identified exit to DSF 3752 | -6/Factory | Entered DSF 3766 | -6/DSF | Identified 1B-0RG's Assimilator 3767 | -6/DSF | Assimilating Chaingunner 5a into Collective. 3775 | -6/DSF | Additional patrols routed to DSF 3801 | -6/DSF | Assimilating Slicer 5a into Collective. 3815 | -6/DSF | Assimilating Slicer 5b into Collective. 3984 | -6/DSF | Assimilating Virus 5a into Collective. 4006 | -6/DSF | Build established: Hacker-Mutant 4023 | -6/DSF | Core integrity fell below 50% 4057 | -6/DSF | Lost 3 parts (1n1u1w) 4066 | -6/DSF | Discovered new exit (range 15) 4067 | -6/DSF | Core integrity fell below 20% 4070 | -6/DSF | Destroyed by G-50 Soldier with Heavy Laser Last Messages --------------- dispatching Cutter reinforcements to area. 04047_ Acquired 78 matter. 04052_ Acquired Shock Bomb Launcher. 04059_ Destroyed Lgt. Nuclear Core. 04059_ Matter Repository disabled. 04063_ C-30 ARC bursts open, deploying its payload. 04063_ G-67 Veteran unfolds itself. 04063_ G-50 Soldier unfolds itself. 04063_ Slammed into G-50 Soldier. 04063_ Hacking Suite destroyed. 04063_ System corrupted by crushing effect (+2). 04064_ Slammed into G-50 Soldier. 04065_ Acquired 64 matter. 04065_ Slammed into G-50 Soldier. 04066_ EXIT=FOUND 04067_ C-30 ARC bursts open, deploying its payload. 04067_ S-27 Virus unfolds itself. 04067_ X-72 Disruptor springs to life. Map ----- +----------------------------------------------------+ | ???????????????????????????????????#! # | | ???????????????????????????????????#! !# | | ???????????????????????????????????### ## | | ???????????????????????????????????#![! !# | | ???????????????????????????????????#!=!%!# | | ???????????????????????????????????#! = !# | | ????????????????????????????#???###### ## | | ????????????????????????????#]]?# ?# | | ??????????????????????? ##]]]# ## | | ??????????????????????? | | ?????????????????????? H | | ?????????????????????? | | ?????????????????????? ##!!!# #" | | ??????????????????????# #?#!!?# ## | | ????????????????????### ###???###### ## | | ?????????????????????!! !!???????# = # | | ?????????????????????!! !????????# % # | | ??????????????????????! !????????# = # | | ????????????????????### ###??????###" ## | | ????????????????????#!! #??????# /# | | ????????????????????#!! #??????# /# | | ?????????????##?#####!! ########## ## | | ??????###????#!!# #?# #?# #]]### ## | | ??????#"" x##!!# ### g ### # ## "" | | ??????""" s g "" | | ??????#""< %s @ sg "" | | ???????"""""## #!!!#]] ^ g # # ##%%""" | | ?????????????#??#####]] #########""""" | | ????????????????????#########???????##"### | | ?????????????????????????????????????#"#?? | | ??????????????????????????????????????""?? | | ?????????????????????????????????????????? | | ?????????????????????????????????????????? | | ?????????????????????????????????????????? | | ?????????????????????????????????????????? | | ?????????????????????????????????????????? | | | | | | | | | | | | | | | | | | | | | | | | | | | | | +----------------------------------------------------+ Best States ------------- Heat Dissipation 37 Energy Generation 10 Energy Capacity 250 Matter Stores 300 Matter Capacity 300 Sight Range 16 Robot Scan Range 14 Terrain Scan Density 10 Evasion (%) 50 Recoil Reduction 2 Offensive Hacking 31 Item Schematics ----------------- Hvy. Rocket Launcher | -8/Recycling | Hacked Lrg. Storage Unit | -8/Recycling | Hacked Robot Schematics ------------------ None Fabricated ------------ Nothing Repaired ---------- Nothing Studied --------- None Alien Tech Used ----------------- None Achievements -------------- None Challenges ------------ None Game ------ Seed WeldingTrackerInterrupter Manual? 0 Play Time 00:28:03 Cumulative 139.2 hours Start 2026.04.17 @ 11:25:41 End 2026.04.17 @ 14:13:59 Sessions 1 Manual Loads 0 Difficulty Rogue Special Mode None Game No. 216 Rogue 216 Adventurer 0 Explorer 0 Win Type - Total 1 Types 1/0/0/0/0/0/0/0/0/0 Lore% 50 Gallery% 54 Achievement% 41 Wizard Run 0 Options --------- Layout 1 ASCII 0 Keyboard 1 Movement Arrows Keybinds 0 Fullscreen 1 Font 24/Smallcaps Map View 50x35 Zoom Use 0% Tactical HUD 1 Map Filters NONE Filters NONE Steam 1 RUN: 46698b51-7774-4353-b42c-d1d93786e1da